[Event "Live Chess"]
[Site "Chess.com"]
[Date "2023.05.21"]
[Round "-"]
[White "GEMdzq"]
[Black "gmnorfolk"]
[Result "0-1"]
[WhiteElo "2248"]
[BlackElo "2142"]
[TimeControl "300"]
[EndTime "6:33:12 PDT"]
[Termination "gmnorfolk won by resignation"]

1. e4 {[%clk 0:04:58.7]} 1... e5 {[%clk 0:04:56.1]} 2. Nf3 {[%clk 0:04:56.9]}
2... Nc6 {[%clk 0:04:53.3]} 3. Bb5 {[%clk 0:04:56.6]} 3... a6 {[%clk 0:04:51.9]}
4. Ba4 {[%clk 0:04:56.1]} 4... Nf6 {[%clk 0:04:51.2]} 5. O-O {[%clk 0:04:55.6]}
5... Be7 {[%clk 0:04:50.7]} 6. Re1 {[%clk 0:04:53.9]} 6... b5 {[%clk 0:04:49.8]}
7. Bb3 {[%clk 0:04:53]} 7... O-O {[%clk 0:04:49.4]} 8. a4 {[%clk 0:04:50.1]}
8... b4 {[%clk 0:04:46.2]} 9. d3 {[%clk 0:04:44.6]} 9... d6 {[%clk 0:04:44.2]}
10. h3 {[%clk 0:04:35.6]} 10... h6 {[%clk 0:04:41.5]} 11. Nbd2 {[%clk
0:04:34.8]} 11... Be6 {[%clk 0:04:39.9]} 12. c3 {[%clk 0:04:16.3]} 12... Rb8
{[%clk 0:04:35]} 13. Bxe6 {[%clk 0:04:09.9]} 13... fxe6 {[%clk 0:04:32.3]} 14.
Nf1 {[%clk 0:04:05.7]} 14... bxc3 {[%clk 0:04:25.5]} 15. bxc3 {[%clk 0:04:04.2]}
15... Qd7 {[%clk 0:04:21.9]} 16. Ba3 {[%clk 0:03:43.2]} 16... Rfd8 {[%clk
0:04:10.8]} 17. d4 {[%clk 0:03:38.7]} 17... exd4 {[%clk 0:04:02.5]} 18. cxd4
{[%clk 0:03:38.6]} 18... e5 {[%clk 0:03:50.1]} 19. Ng3 {[%clk 0:03:32]} 19...
Nxd4 {[%clk 0:03:41.6]} 20. Nxd4 {[%clk 0:03:30.5]} 20... exd4 {[%clk 0:03:41]}
21. Qxd4 {[%clk 0:03:29.8]} 21... c5 {[%clk 0:03:39.5]} 22. Qc4+ {[%clk
0:03:28.6]} 22... Kh7 {[%clk 0:03:36]} 23. Rad1 {[%clk 0:03:20.3]} 23... Qc6
{[%clk 0:03:28.8]} 24. Nf5 {[%clk 0:03:03]} 24... Bf8 {[%clk 0:03:27.4]} 25. Rd3
{[%clk 0:02:39]} 25... Re8 {[%clk 0:03:20]} 26. Rde3 {[%clk 0:02:08.3]} 26... a5
{[%clk 0:03:01.5]} 27. R3e2 {[%clk 0:01:33.3]} 27... Qd7 {[%clk 0:02:43.4]} 28.
Bb2 {[%clk 0:01:28.2]} 28... d5 {[%clk 0:02:36.1]} 29. exd5 {[%clk 0:01:24.8]}
29... Rxe2 {[%clk 0:02:33.2]} 30. Rxe2 {[%clk 0:01:20.5]} 30... Qxf5 {[%clk
0:02:31]} 31. Be5 {[%clk 0:01:09.6]} 31... Rb1+ {[%clk 0:02:19.9]} 32. Kh2
{[%clk 0:01:08.7]} 32... Rb4 {[%clk 0:02:08.6]} 33. Qa6 {[%clk 0:00:54.6]} 33...
Re4 {[%clk 0:01:57.6]} 34. Rxe4 {[%clk 0:00:52.9]} 34... Nxe4 {[%clk 0:01:51.3]}
35. Bb8 {[%clk 0:00:39.9]} 35... Qxd5 {[%clk 0:01:43.6]} 36. f3 {[%clk 0:00:34]}
36... Bd6+ {[%clk 0:01:38.8]} 37. Bxd6 {[%clk 0:00:25.1]} 37... Qxd6+ {[%clk
0:01:37.2]} 0-1

[Event "Live Chess"]
[Site "Chess.com"]
[Date "2023.05.21"]
[Round "-"]
[White "Nazar_777"]
[Black "Cimon"]
[Result "0-1"]
[WhiteElo "1566"]
[BlackElo "1848"]
[TimeControl "300"]
[EndTime "6:33:17 PDT"]
[Termination "Cimon won by checkmate"]

1. e3 {[%clk 0:04:56.7]} 1... g6 {[%clk 0:04:58.4]} 2. h4 {[%clk 0:04:56]} 2...
Bg7 {[%clk 0:04:56.4]} 3. a3 {[%clk 0:04:55.4]} 3... d5 {[%clk 0:04:54.1]} 4. c4
{[%clk 0:04:54.5]} 4... c6 {[%clk 0:04:51.5]} 5. Nf3 {[%clk 0:04:52.9]} 5... Bf5
{[%clk 0:04:49.1]} 6. cxd5 {[%clk 0:04:50.5]} 6... cxd5 {[%clk 0:04:47.8]} 7.
Nc3 {[%clk 0:04:49.5]} 7... Nc6 {[%clk 0:04:44.9]} 8. Be2 {[%clk 0:04:47.2]}
8... Qd7 {[%clk 0:04:40.4]} 9. Ng5 {[%clk 0:04:45.3]} 9... h6 {[%clk 0:04:37.5]}
10. Nf3 {[%clk 0:04:43.9]} 10... Nf6 {[%clk 0:04:35.3]} 11. b4 {[%clk
0:04:42.7]} 11... a6 {[%clk 0:04:33.5]} 12. Bb2 {[%clk 0:04:41.6]} 12... e5
{[%clk 0:04:29.1]} 13. b5 {[%clk 0:04:39.1]} 13... axb5 {[%clk 0:04:23]} 14.
Bxb5 {[%clk 0:04:37.5]} 14... Qd6 {[%clk 0:04:14.4]} 15. a4 {[%clk 0:04:33.8]}
15... d4 {[%clk 0:04:01.4]} 16. Bxc6+ {[%clk 0:04:30.2]} 16... bxc6 {[%clk
0:03:57.8]} 17. Na2 {[%clk 0:04:25.9]} 17... c5 {[%clk 0:03:52.2]} 18. d3 {[%clk
0:04:12.9]} 18... O-O {[%clk 0:03:49.8]} 19. e4 {[%clk 0:04:11.8]} 19... Bg4
{[%clk 0:03:44]} 20. Bc1 {[%clk 0:04:10.1]} 20... c4 {[%clk 0:03:29.8]} 21. dxc4
{[%clk 0:03:58.6]} 21... Nxe4 {[%clk 0:03:26.8]} 22. Qd3 {[%clk 0:03:50.9]}
22... Nc5 {[%clk 0:03:23]} 23. Qc2 {[%clk 0:03:44.5]} 23... d3 {[%clk
0:03:11.7]} 24. Qd2 {[%clk 0:03:38.8]} 24... e4 {[%clk 0:03:06.8]} 25. Nh2
{[%clk 0:03:35.4]} 25... Be6 {[%clk 0:03:01.7]} 26. Bb2 {[%clk 0:03:32.3]} 26...
Rxa4 {[%clk 0:02:56.9]} 27. Bxg7 {[%clk 0:03:30.5]} 27... Kxg7 {[%clk
0:02:55.9]} 28. Qb2+ {[%clk 0:03:29.3]} 28... Kh7 {[%clk 0:02:51.2]} 29. Nc3
{[%clk 0:03:28]} 29... Rxa1+ {[%clk 0:02:45.3]} 30. Qxa1 {[%clk 0:03:26.6]}
30... d2+ {[%clk 0:02:43]} 31. Ke2 {[%clk 0:03:25.3]} 31... Qd3+ {[%clk
0:02:39.1]} 32. Kd1 {[%clk 0:03:21.9]} 32... Bxc4 {[%clk 0:02:34.4]} 33. Qb2
{[%clk 0:03:15.4]} 33... Bb3+ {[%clk 0:02:31.4]} 34. Qxb3 {[%clk 0:03:01.5]}
34... Nxb3 {[%clk 0:02:28.9]} 35. Ng4 {[%clk 0:02:53.4]} 35... Qxc3 {[%clk
0:02:26.8]} 36. Ke2 {[%clk 0:02:51.4]} 36... Nc1+ {[%clk 0:02:21.6]} 37. Kd1
{[%clk 0:02:48.9]} 37... Rd8 {[%clk 0:02:14.6]} 38. Ne3 {[%clk 0:02:46]} 38...
Qb3+ {[%clk 0:02:10.3]} 39. Nc2 {[%clk 0:02:39.2]} 39... Rc8 {[%clk 0:02:07.1]}
40. Kxd2 {[%clk 0:02:32.3]} 40... Rxc2+ {[%clk 0:02:04.5]} 41. Kd1 {[%clk
0:02:30.7]} 41... Qd3+ {[%clk 0:01:59.6]} 42. Ke1 {[%clk 0:02:29.3]} 42... Qe2#
{[%clk 0:01:58.4]} 0-1

[Event "Live Chess"]
[Site "Chess.com"]
[Date "2023.05.21"]
[Round "-"]
[White "JoRoSaR"]
[Black "Biranidun"]
[Result "0-1"]
[WhiteElo "1686"]
[BlackElo "2515"]
[TimeControl "300"]
[EndTime "6:33:35 PDT"]
[Termination "Biranidun won by resignation"]

1. e4 {[%clk 0:04:59.6]} 1... c5 {[%clk 0:04:55.6]} 2. Nf3 {[%clk 0:04:59.1]}
2... d6 {[%clk 0:04:55.1]} 3. c3 {[%clk 0:04:58]} 3... Nf6 {[%clk 0:04:54]} 4.
Be2 {[%clk 0:04:57.8]} 4... g6 {[%clk 0:04:53]} 5. O-O {[%clk 0:04:56.5]} 5...
Bg7 {[%clk 0:04:52.6]} 6. Qc2 {[%clk 0:04:55.9]} 6... O-O {[%clk 0:04:52.1]} 7.
d3 {[%clk 0:04:55.5]} 7... Bg4 {[%clk 0:04:50]} 8. h3 {[%clk 0:04:54.9]} 8...
Bxf3 {[%clk 0:04:49.1]} 9. Bxf3 {[%clk 0:04:54.8]} 9... Nc6 {[%clk 0:04:48.5]}
10. Be3 {[%clk 0:04:54.1]} 10... Rc8 {[%clk 0:04:46.9]} 11. Nd2 {[%clk
0:04:53.4]} 11... Nd7 {[%clk 0:04:45.9]} 12. Qa4 {[%clk 0:04:52]} 12... a6
{[%clk 0:04:43.7]} 13. Rac1 {[%clk 0:04:47.5]} 13... Qb6 {[%clk 0:04:40.9]} 14.
b3 {[%clk 0:04:44.1]} 14... Qa7 {[%clk 0:04:39.1]} 15. b4 {[%clk 0:04:42.2]}
15... b5 {[%clk 0:04:37.2]} 16. Qa3 {[%clk 0:04:40.6]} 16... cxb4 {[%clk
0:04:24.2]} 17. cxb4 {[%clk 0:04:36.1]} 17... Bd4 {[%clk 0:04:23.8]} 18. Bxd4
{[%clk 0:04:24.3]} 18... Nxd4 {[%clk 0:04:23.7]} 19. Bd1 {[%clk 0:04:22.3]}
19... Ne5 {[%clk 0:04:19.2]} 20. f4 {[%clk 0:04:17.2]} 20... Nc2+ {[%clk
0:04:16.7]} 0-1

[Event "Live Chess"]
[Site "Chess.com"]
[Date "2023.05.21"]
[Round "-"]
[White "BillythekidFellowes"]
[Black "SupremeTactician"]
[Result "1-0"]
[WhiteElo "2086"]
[BlackElo "2220"]
[TimeControl "300"]
[EndTime "6:33:46 PDT"]
[Termination "BillythekidFellowes won by resignation"]

1. e4 {[%clk 0:04:58.9]} 1... e5 {[%clk 0:04:58]} 2. Nf3 {[%clk 0:04:56.6]} 2...
Nc6 {[%clk 0:04:56.6]} 3. Nc3 {[%clk 0:04:56]} 3... Nf6 {[%clk 0:04:54]} 4. d4
{[%clk 0:04:54.3]} 4... exd4 {[%clk 0:04:51.6]} 5. Nxd4 {[%clk 0:04:54.2]} 5...
Bb4 {[%clk 0:04:49.4]} 6. Nxc6 {[%clk 0:04:51.1]} 6... bxc6 {[%clk 0:04:47.7]}
7. f3 {[%clk 0:04:50.7]} 7... d5 {[%clk 0:04:44.1]} 8. Bd3 {[%clk 0:04:47.5]}
8... O-O {[%clk 0:04:40.2]} 9. O-O {[%clk 0:04:46.7]} 9... Bxc3 {[%clk 0:04:36]}
10. bxc3 {[%clk 0:04:46.6]} 10... dxe4 {[%clk 0:04:34.9]} 11. fxe4 {[%clk
0:04:46.5]} 11... h6 {[%clk 0:04:27.9]} 12. Qf3 {[%clk 0:04:32.9]} 12... Re8
{[%clk 0:04:23.5]} 13. Bb2 {[%clk 0:04:22.2]} 13... Qd6 {[%clk 0:04:18.9]} 14.
c4 {[%clk 0:04:19.6]} 14... Qc5+ {[%clk 0:04:12.9]} 15. Kh1 {[%clk 0:04:16.7]}
15... Qg5 {[%clk 0:04:01.7]} 16. e5 {[%clk 0:04:13.3]} 16... Ng4 {[%clk
0:03:47.6]} 17. Qxf7+ {[%clk 0:04:10]} 1-0

[Event "Live Chess"]
[Site "Chess.com"]
[Date "2023.05.21"]
[Round "-"]
[White "lateforthesky"]
[Black "Berdgross"]
[Result "1-0"]
[WhiteElo "2110"]
[BlackElo "697"]
[TimeControl "300"]
[EndTime "6:33:47 PDT"]
[Termination "lateforthesky won by resignation"]

1. e4 {[%clk 0:04:57.9]} 1... e5 {[%clk 0:04:58.4]} 2. Nf3 {[%clk 0:04:54.7]}
2... d6 {[%clk 0:04:57.5]} 3. Nc3 {[%clk 0:04:52.4]} 3... Bg4 {[%clk 0:04:56.8]}
4. h3 {[%clk 0:04:44.6]} 4... Bxf3 {[%clk 0:04:55.2]} 5. Qxf3 {[%clk 0:04:43.6]}
5... Nc6 {[%clk 0:04:53.5]} 6. Qd1 {[%clk 0:04:40.7]} 6... Nd4 {[%clk
0:04:50.7]} 7. Bc4 {[%clk 0:04:37.2]} 7... Nf6 {[%clk 0:04:45]} 8. d3 {[%clk
0:04:35.6]} 8... Be7 {[%clk 0:04:41.4]} 9. O-O {[%clk 0:04:33.5]} 9... O-O
{[%clk 0:04:40.8]} 10. f4 {[%clk 0:04:31.6]} 10... Re8 {[%clk 0:04:33.6]} 11. f5
{[%clk 0:04:28]} 11... d5 {[%clk 0:04:23.2]} 12. exd5 {[%clk 0:04:20.5]} 12...
Bb4 {[%clk 0:04:16.8]} 13. Be3 {[%clk 0:04:10.8]} 13... Bxc3 {[%clk 0:04:14.4]}
14. bxc3 {[%clk 0:04:09.1]} 14... Nxc2 {[%clk 0:03:56.8]} 15. Qxc2 {[%clk
0:04:06.7]} 15... Nxd5 {[%clk 0:03:47.9]} 16. Rae1 {[%clk 0:04:00.9]} 16... Nxe3
{[%clk 0:03:35.4]} 17. Rxe3 {[%clk 0:03:59]} 17... Qg5 {[%clk 0:03:28.5]} 18.
Qf2 {[%clk 0:03:54.2]} 18... Rad8 {[%clk 0:03:16.2]} 19. Rg3 {[%clk 0:03:50.8]}
19... Qe7 {[%clk 0:03:08.5]} 20. f6 {[%clk 0:03:48.9]} 20... Qxf6 {[%clk
0:03:03.2]} 21. Qxf6 {[%clk 0:03:46.8]} 1-0

[Event "Live Chess"]
[Site "Chess.com"]
[Date "2023.05.21"]
[Round "-"]
[White "Conradical12"]
[Black "Olisingapore"]
[Result "0-1"]
[WhiteElo "1584"]
[BlackElo "1778"]
[TimeControl "300"]
[EndTime "6:34:12 PDT"]
[Termination "Olisingapore won by resignation"]

1. e4 {[%clk 0:04:55.5]} 1... c5 {[%clk 0:04:57.5]} 2. Nc3 {[%clk 0:04:53.4]}
2... d6 {[%clk 0:04:57]} 3. Nf3 {[%clk 0:04:51.5]} 3... Nf6 {[%clk 0:04:56]} 4.
Bc4 {[%clk 0:04:49.3]} 4... Nc6 {[%clk 0:04:54.4]} 5. d3 {[%clk 0:04:47.5]} 5...
g6 {[%clk 0:04:46.8]} 6. O-O {[%clk 0:04:38.7]} 6... Bg7 {[%clk 0:04:35.1]} 7.
Be3 {[%clk 0:04:35.1]} 7... a6 {[%clk 0:04:29.8]} 8. a4 {[%clk 0:04:32.6]} 8...
Bg4 {[%clk 0:04:08.5]} 9. h3 {[%clk 0:04:28.2]} 9... Bxf3 {[%clk 0:03:53.7]} 10.
Qxf3 {[%clk 0:04:28.1]} 10... O-O {[%clk 0:03:45.2]} 11. Nd5 {[%clk 0:04:22]}
11... Nxd5 {[%clk 0:03:40.3]} 12. exd5 {[%clk 0:04:20.4]} 12... Nb4 {[%clk
0:03:37.7]} 13. c3 {[%clk 0:04:16.9]} 13... Nc2 {[%clk 0:03:32.4]} 14. Rac1
{[%clk 0:04:12.7]} 14... Nxe3 {[%clk 0:03:30.1]} 15. fxe3 {[%clk 0:04:10.7]}
15... Qd7 {[%clk 0:03:27.1]} 16. d4 {[%clk 0:03:59.8]} 16... b5 {[%clk
0:03:18.5]} 17. axb5 {[%clk 0:03:53.1]} 17... axb5 {[%clk 0:03:18.4]} 18. Bd3
{[%clk 0:03:42]} 18... c4 {[%clk 0:02:55.7]} 19. Bc2 {[%clk 0:03:39.6]} 19...
Ra2 {[%clk 0:02:53.7]} 20. Rb1 {[%clk 0:03:37.9]} 20... Rfa8 {[%clk 0:02:45.2]}
21. Qxf7+ {[%clk 0:03:34.8]} 21... Kh8 {[%clk 0:02:43.4]} 22. Rf4 {[%clk
0:03:15.8]} 22... Rf8 {[%clk 0:02:37]} 23. Qxf8+ {[%clk 0:03:05.5]} 23... Bxf8
{[%clk 0:02:33]} 24. Rxf8+ {[%clk 0:03:05]} 24... Kg7 {[%clk 0:02:32]} 25. Rf3
{[%clk 0:03:01.8]} 25... Qb7 {[%clk 0:02:24.6]} 26. Be4 {[%clk 0:02:55.5]} 26...
e6 {[%clk 0:02:22.4]} 27. Rf4 {[%clk 0:02:37.1]} 27... exd5 {[%clk 0:02:17.5]}
28. Bf3 {[%clk 0:02:31.2]} 28... b4 {[%clk 0:02:13.2]} 29. cxb4 {[%clk
0:02:21.8]} 29... Qxb4 {[%clk 0:02:13.1]} 30. Bxd5 {[%clk 0:02:17.8]} 30... Rxb2
{[%clk 0:02:08.5]} 31. Rbf1 {[%clk 0:02:14.7]} 31... Qa5 {[%clk 0:01:38.4]} 32.
Be6 {[%clk 0:01:51.8]} 32... Qg5 {[%clk 0:01:32.5]} 33. Rg4 {[%clk 0:01:33.3]}
33... Qxe3+ {[%clk 0:01:29.1]} 34. Kh1 {[%clk 0:01:29.3]} 34... Qxe6 {[%clk
0:01:28.1]} 0-1

[Event "Live Chess"]
[Site "Chess.com"]
[Date "2023.05.21"]
[Round "-"]
[White "Anirudh_23"]
[Black "Hacker_2009"]
[Result "0-1"]
[WhiteElo "1877"]
[BlackElo "1928"]
[TimeControl "300"]
[EndTime "6:34:14 PDT"]
[Termination "Hacker_2009 won by resignation"]

1. Nf3 {[%clk 0:04:57.6]} 1... Nf6 {[%clk 0:04:58.3]} 2. g3 {[%clk 0:04:56.6]}
2... e6 {[%clk 0:04:57.6]} 3. Bg2 {[%clk 0:04:55.3]} 3... d5 {[%clk 0:04:57.2]}
4. O-O {[%clk 0:04:54.1]} 4... Be7 {[%clk 0:04:55.8]} 5. c4 {[%clk 0:04:52.5]}
5... O-O {[%clk 0:04:54.2]} 6. b3 {[%clk 0:04:43]} 6... b6 {[%clk 0:04:52.9]} 7.
Bb2 {[%clk 0:04:42]} 7... Bb7 {[%clk 0:04:51.7]} 8. Re1 {[%clk 0:04:25.4]} 8...
c5 {[%clk 0:04:50]} 9. cxd5 {[%clk 0:04:22.3]} 9... Nxd5 {[%clk 0:04:47.7]} 10.
e4 {[%clk 0:04:19.7]} 10... Nb4 {[%clk 0:04:45.9]} 11. d4 {[%clk 0:04:18.4]}
11... cxd4 {[%clk 0:04:44]} 12. Bxd4 {[%clk 0:04:14.7]} 12... N8c6 {[%clk
0:04:41]} 13. Bb2 {[%clk 0:03:57.9]} 0-1

[Event "Live Chess"]
[Site "Chess.com"]
[Date "2023.05.21"]
[Round "-"]
[White "smoggyrabbit"]
[Black "SavagePawn7"]
[Result "1-0"]
[WhiteElo "1629"]
[BlackElo "782"]
[TimeControl "300"]
[EndTime "6:34:18 PDT"]
[Termination "smoggyrabbit won by resignation"]

1. d4 {[%clk 0:04:59.3]} 1... e5 {[%clk 0:04:56.8]} 2. dxe5 {[%clk 0:04:57.1]}
2... d6 {[%clk 0:04:55.5]} 3. Nf3 {[%clk 0:04:51.6]} 3... dxe5 {[%clk
0:04:53.8]} 4. Qxd8+ {[%clk 0:04:48.5]} 4... Kxd8 {[%clk 0:04:52.7]} 5. Nxe5
{[%clk 0:04:47.6]} 5... Nc6 {[%clk 0:04:51]} 6. Nxf7+ {[%clk 0:04:46.3]} 6...
Ke8 {[%clk 0:04:31.6]} 7. Nxh8 {[%clk 0:04:46.2]} 7... Nf6 {[%clk 0:04:27.3]} 8.
Nc3 {[%clk 0:04:34.3]} 8... Nd4 {[%clk 0:04:25.2]} 9. Kd1 {[%clk 0:04:30.2]}
9... Bf5 {[%clk 0:04:21.1]} 10. f3 {[%clk 0:04:14.2]} 10... Bxc2+ {[%clk
0:04:15.3]} 11. Ke1 {[%clk 0:04:10.8]} 11... Bf5 {[%clk 0:04:12.1]} 12. e4
{[%clk 0:04:09.5]} 12... Bg6 {[%clk 0:04:08.8]} 13. Nxg6 {[%clk 0:04:07]} 13...
hxg6 {[%clk 0:04:07.6]} 14. Bc4 {[%clk 0:04:04.8]} 1-0

[Event "Live Chess"]
[Site "Chess.com"]
[Date "2023.05.21"]
[Round "-"]
[White "JohanKjeldahl"]
[Black "Vedant-1411"]
[Result "1-0"]
[WhiteElo "1881"]
[BlackElo "878"]
[TimeControl "300"]
[EndTime "6:34:21 PDT"]
[Termination "JohanKjeldahl won by checkmate"]

1. e4 {[%clk 0:04:57.9]} 1... e5 {[%clk 0:04:58.2]} 2. Nf3 {[%clk 0:04:56.8]}
2... Nc6 {[%clk 0:04:51.8]} 3. d4 {[%clk 0:04:55.7]} 3... exd4 {[%clk
0:04:49.9]} 4. c3 {[%clk 0:04:54.9]} 4... dxc3 {[%clk 0:04:48.3]} 5. Bc4 {[%clk
0:04:53.5]} 5... h6 {[%clk 0:04:45.9]} 6. Nxc3 {[%clk 0:04:50.6]} 6... Bd6
{[%clk 0:04:41.8]} 7. O-O {[%clk 0:04:47.3]} 7... Nf6 {[%clk 0:04:37.1]} 8. Re1
{[%clk 0:04:43.2]} 8... O-O {[%clk 0:04:34.7]} 9. e5 {[%clk 0:04:42.3]} 9... Ne8
{[%clk 0:04:32.9]} 10. exd6 {[%clk 0:04:40.5]} 10... Nxd6 {[%clk 0:04:31.8]} 11.
Bb3 {[%clk 0:04:37.2]} 11... a5 {[%clk 0:04:26.9]} 12. Bf4 {[%clk 0:04:34.9]}
12... a4 {[%clk 0:04:05.8]} 13. Bc2 {[%clk 0:04:33.3]} 13... Nb4 {[%clk
0:04:03.8]} 14. Bb1 {[%clk 0:04:30.4]} 14... Qf6 {[%clk 0:04:00.2]} 15. Be5
{[%clk 0:04:24.8]} 15... Qe6 {[%clk 0:03:57.3]} 16. a3 {[%clk 0:04:21.5]} 16...
Nc6 {[%clk 0:03:52.1]} 17. Bxg7 {[%clk 0:04:18.7]} 17... Kxg7 {[%clk 0:03:49.6]}
18. Rxe6 {[%clk 0:04:16.6]} 18... dxe6 {[%clk 0:03:46.7]} 19. Qd3 {[%clk
0:04:08.2]} 19... Nf5 {[%clk 0:03:30.3]} 20. g4 {[%clk 0:04:04.4]} 20... Nd6
{[%clk 0:03:27.4]} 21. Qh7+ {[%clk 0:04:01.5]} 21... Kf6 {[%clk 0:03:22.7]} 22.
Qxh6+ {[%clk 0:03:59.1]} 22... Ke7 {[%clk 0:03:20.8]} 23. Qh4+ {[%clk
0:03:53.2]} 23... Ke8 {[%clk 0:03:17.7]} 24. Bc2 {[%clk 0:03:40]} 24... Nc4
{[%clk 0:02:57.5]} 25. Nb5 {[%clk 0:03:36.2]} 25... Rb8 {[%clk 0:02:48.7]} 26.
Nxc7+ {[%clk 0:03:33.6]} 26... Kd7 {[%clk 0:02:45.3]} 27. Nb5 {[%clk 0:03:28.4]}
27... Nxb2 {[%clk 0:02:41.7]} 28. Bxa4 {[%clk 0:03:25.2]} 28... Nxa4 {[%clk
0:02:36.2]} 29. Rd1+ {[%clk 0:03:23.6]} 29... Ke8 {[%clk 0:02:33.9]} 30. Nc7#
{[%clk 0:03:20.3]} 1-0

[Event "Live Chess"]
[Site "Chess.com"]
[Date "2023.05.21"]
[Round "-"]
[White "GMHarry-youtube"]
[Black "McSlash1"]
[Result "1-0"]
[WhiteElo "2038"]
[BlackElo "1991"]
[TimeControl "300"]
[EndTime "6:34:22 PDT"]
[Termination "GMHarry-youtube won by resignation"]

1. e4 {[%clk 0:04:59.1]} 1... c5 {[%clk 0:04:58.3]} 2. Nf3 {[%clk 0:04:58.2]}
2... d6 {[%clk 0:04:57.8]} 3. Bb5+ {[%clk 0:04:57.2]} 3... Bd7 {[%clk
0:04:56.6]} 4. Bxd7+ {[%clk 0:04:55.7]} 4... Qxd7 {[%clk 0:04:56.5]} 5. c4
{[%clk 0:04:55.2]} 5... Nc6 {[%clk 0:04:55.2]} 6. Nc3 {[%clk 0:04:53.9]} 6... g6
{[%clk 0:04:54.5]} 7. d4 {[%clk 0:04:53.3]} 7... cxd4 {[%clk 0:04:54.4]} 8. Nxd4
{[%clk 0:04:53.2]} 8... Bg7 {[%clk 0:04:54]} 9. Be3 {[%clk 0:04:52.7]} 9... Nf6
{[%clk 0:04:52.9]} 10. f3 {[%clk 0:04:52.2]} 10... O-O {[%clk 0:04:51.9]} 11.
O-O {[%clk 0:04:51.9]} 11... Rac8 {[%clk 0:04:49]} 12. b3 {[%clk 0:04:51.2]}
12... b6 {[%clk 0:04:46.7]} 13. a4 {[%clk 0:04:50.1]} 13... a5 {[%clk
0:04:46.1]} 14. Qd2 {[%clk 0:04:49.2]} 14... Nb4 {[%clk 0:04:45.6]} 15. Ndb5
{[%clk 0:04:47.2]} 15... Ne8 {[%clk 0:04:41.9]} 16. Bxb6 {[%clk 0:04:44.1]}
16... Rb8 {[%clk 0:04:35.4]} 17. Bxa5 {[%clk 0:04:42.4]} 17... Nc6 {[%clk
0:04:30.6]} 18. b4 {[%clk 0:04:32.4]} 18... Nxa5 {[%clk 0:04:29.2]} 19. bxa5
{[%clk 0:04:30.3]} 19... Qc6 {[%clk 0:04:27.4]} 20. Qd5 {[%clk 0:04:26.4]} 20...
Rc8 {[%clk 0:04:17.9]} 21. Qxc6 {[%clk 0:04:14.6]} 21... Rxc6 {[%clk 0:04:17.8]}
22. Nd5 {[%clk 0:04:12.8]} 22... Rxc4 {[%clk 0:04:07.9]} 23. Nxe7+ {[%clk
0:04:10.9]} 23... Kh8 {[%clk 0:04:06.8]} 24. Ra2 {[%clk 0:04:02.9]} 24... Nc7
{[%clk 0:04:01.6]} 25. Nxc7 {[%clk 0:03:57.3]} 25... Rxc7 {[%clk 0:04:01.5]} 26.
Nd5 {[%clk 0:03:56.8]} 26... Ra7 {[%clk 0:04:00.7]} 27. Rb1 {[%clk 0:03:50.5]}
27... Rxa5 {[%clk 0:03:59.3]} 28. Rb5 {[%clk 0:03:50.1]} 28... Ra7 {[%clk
0:03:56.7]} 29. a5 {[%clk 0:03:47.1]} 29... Rfa8 {[%clk 0:03:54.7]} 30. Nb6
{[%clk 0:03:44.4]} 30... Ra6 {[%clk 0:03:46.7]} 31. Nxa8 {[%clk 0:03:42.3]}
31... Rxa8 {[%clk 0:03:45.5]} 32. a6 {[%clk 0:03:41.7]} 32... h5 {[%clk
0:03:42.8]} 33. Kf1 {[%clk 0:03:40.1]} 33... Kh7 {[%clk 0:03:42.1]} 34. a7
{[%clk 0:03:39.3]} 34... Bd4 {[%clk 0:03:38.8]} 35. Rb8 {[%clk 0:03:37.8]} 35...
Rxa7 {[%clk 0:03:37.6]} 36. Rxa7 {[%clk 0:03:36.7]} 36... Bxa7 {[%clk
0:03:37.5]} 37. Rb7 {[%clk 0:03:36.6]} 1-0

[Event "Live Chess"]
[Site "Chess.com"]
[Date "2023.05.21"]
[Round "-"]
[White "kevinmilleruk"]
[Black "CheckThis4"]
[Result "0-1"]
[WhiteElo "1149"]
[BlackElo "2524"]
[TimeControl "300"]
[EndTime "6:34:24 PDT"]
[Termination "CheckThis4 won by resignation"]

1. c4 {[%clk 0:04:55.7]} 1... e5 {[%clk 0:04:58.3]} 2. Nc3 {[%clk 0:04:30.4]}
2... Nc6 {[%clk 0:04:56.7]} 3. g3 {[%clk 0:04:23.2]} 3... h5 {[%clk 0:04:54.1]}
4. Bg2 {[%clk 0:04:21.6]} 4... h4 {[%clk 0:04:52.9]} 5. d3 {[%clk 0:04:16.6]}
5... Bc5 {[%clk 0:04:51]} 6. Nf3 {[%clk 0:04:13.7]} 6... h3 {[%clk 0:04:48.6]}
7. Bf1 {[%clk 0:04:09.8]} 7... Nf6 {[%clk 0:04:47.5]} 8. Nh4 {[%clk 0:04:08.8]}
8... Ng4 {[%clk 0:04:42.4]} 9. Ne4 {[%clk 0:03:58.7]} 9... Rxh4 {[%clk
0:04:30.4]} 10. gxh4 {[%clk 0:03:54.3]} 10... Qxh4 {[%clk 0:04:29.1]} 11. Nxc5
{[%clk 0:03:50.6]} 11... Qxf2+ {[%clk 0:04:27.1]} 12. Kd2 {[%clk 0:03:49.5]}
12... Qxc5 {[%clk 0:04:22.7]} 13. Bxh3 {[%clk 0:03:44.1]} 13... Qe3+ {[%clk
0:04:19]} 14. Kc2 {[%clk 0:03:41.6]} 14... Qxh3 {[%clk 0:04:18.6]} 15. Bg5
{[%clk 0:03:04.3]} 15... Nd4+ {[%clk 0:04:10.4]} 16. Kc3 {[%clk 0:03:01.6]}
16... Nf2 {[%clk 0:04:02.6]} 17. Qf1 {[%clk 0:02:58.3]} 17... Ne4+ {[%clk
0:03:57.8]} 18. Kb4 {[%clk 0:02:51.8]} 18... a5+ {[%clk 0:03:48.6]} 19. Ka3
{[%clk 0:02:48.7]} 19... Nc2+ {[%clk 0:03:40.8]} 20. Kb3 {[%clk 0:02:24.5]}
20... Nxa1+ {[%clk 0:03:37.2]} 21. Ka3 {[%clk 0:02:13]} 21... Nc2+ {[%clk
0:03:31.6]} 22. Kb3 {[%clk 0:02:09.8]} 22... Nd4+ {[%clk 0:03:30.3]} 23. Ka3
{[%clk 0:02:07.2]} 23... Qxf1 {[%clk 0:03:28.4]} 24. Rxf1 {[%clk 0:02:04.9]}
24... Nxg5 {[%clk 0:03:27]} 25. h4 {[%clk 0:02:01.9]} 25... Nge6 {[%clk
0:03:25.5]} 26. h5 {[%clk 0:01:56.4]} 26... b5 {[%clk 0:03:23.3]} 27. h6 {[%clk
0:01:52.4]} 27... gxh6 {[%clk 0:03:21.4]} 0-1